bitfinex-derivatives/quotes_SOLF0:USTF0_20260203
["timestamp","ask_amount","ask_price","bid_price","bid_amount"]
[1770138629891,19.95775362,100.55,100.45,21.27175323]
[1770138630699,19.95775362,100.53,100.45,21.27175323]
[1770138630900,19.95775362,100.53,100.42,21.27175323]
[1770138631401,19.95775362,100.51,100.42,21.27175323]
[1770138632002,90.58,100.55,100.42,21.27175323]
[1770138632003,19.95775362,100.49,100.42,21.27175323]
[1770138633297,25.45486791,100.52,100.42,21.27175323]
[1770138633603,19.95775362,100.51,100.42,21.27175323]
[1770138634602,0.06355347,100.48,100.42,21.27175323]
[1770138634804,20.02130709,100.48,100.4,92.36]
[1770138635102,20.02130709,100.48,100.39,21.27175323]
[1770138635103,19.95775362,100.47,100.39,21.27175323]
[1770138639012,19.95775362,100.51,100.39,21.27175323]
[1770138639211,19.95775362,100.51,100.41,21.27175323]
[1770138640709,19.95775362,100.51,100.45,0.06317549]
[1770138641816,19.95775362,100.51,100.41,21.27175323]
[1770138642012,20.02084526,100.49,100.41,21.27175323]
[1770138642513,19.95775362,100.49,100.41,21.27175323]
[1770138642712,19.95775362,100.49,100.38,21.27175323]
[1770138642902,19.95775362,100.47,100.38,21.27175323]
[1770138643706,19.95775362,100.46,100.38,21.27175323]
[1770138646715,0.06318124,100.43,100.38,21.27175323]
[1770138647014,0.06318124,100.43,100.34,306.82]
[1770138647015,20.02093486,100.43,100.35,21.27175323]
[1770138647611,19.95775362,100.43,100.35,21.27175323]
[1770138648016,0.06357437,100.4,100.35,21.27175323]
[1770138648825,109.32,100.47,100.35,21.27175323]
[1770138648826,19.95775362,100.45,100.35,21.27175323]
[1770138652028,19.95775362,100.45,100.39,0.06259333]
[1770138652825,19.16317439,100.48,100.39,17.8826699]
[1770138653425,19.16317439,100.48,100.39,17.82007657]
[1770138655622,19.16317439,100.48,100.42,0.06296857]
[1770138656730,19.18757617,100.5,100.42,18.80297516]
[1770138657222,19.18757617,100.5,100.42,18.74000659]
[1770138660930,19.18757617,100.52,100.42,18.74000659]
[1770138661237,19.18757617,100.51,100.42,18.74000659]
[1770138661437,19.18757617,100.5,100.42,18.74000659]
[1770138662737,19.18757617,100.5,100.38,127.96]
[1770138662738,19.18757617,100.5,100.39,18.74000659]
[1770138663529,19.18757617,100.54,100.44,18.74000659]
[1770138663735,19.18757617,100.54,100.46,18.74000659]
[1770138664634,19.18757617,100.54,100.49,0.06292249]
[1770138668543,19.18757617,100.53,100.43,18.74000659]
[1770138670738,19.18757617,100.53,100.44,18.74000659]
[1770138672042,19.18757617,100.56,100.44,18.74000659]
[1770138672243,19.18757617,100.56,100.46,18.74000659]
[1770138672840,19.18757617,100.56,100.48,18.74000659]
[1770138673636,19.18757617,100.55,100.44,18.74000659]
[1770138674036,19.18757617,100.55,100.46,18.74000659]
[1770138674544,19.18757617,100.54,100.46,18.74000659]
[1770138675939,19.18757617,100.54,100.43,18.74000659]
[1770138676336,5.48706238,100.53,100.43,18.74000659]
[1770138676536,19.18757617,100.52,100.43,18.74000659]
[1770138677745,49.07757617,100.52,100.43,18.74000659]
[1770138678049,98.60757617,100.54,100.43,18.74000659]
[1770138678246,19.18757617,100.54,100.43,18.74000659]
[1770138678447,19.18757617,100.57,100.46,18.74000659]
[1770138678948,19.18757617,100.56,100.46,18.74000659]
[1770138682338,0.06271615,100.52,100.46,18.74000659]
[1770138684647,0.06271615,100.52,100.43,5.48706238]
[1770138684648,16.85106368,100.52,100.43,16.55596868]
[1770138684943,16.78834753,100.5,100.41,16.55596868]
[1770138686054,0.06257458,100.47,100.41,16.55596868]
[1770138688051,16.78834753,100.46,100.37,16.55596868]
[1770138688855,16.78834753,100.44,100.37,16.55596868]
[1770138689847,16.78834753,100.44,100.34,16.55596868]
[1770138690749,16.78834753,100.42,100.34,16.55596868]
[1770138691049,16.78834753,100.45,100.34,16.55596868]
[1770138693360,16.78834753,100.52,100.36,16.55596868]
[1770138693554,16.78834753,100.48,100.37,16.55596868]
[1770138694161,16.78834753,100.46,100.37,16.55596868]
[1770138695655,16.78834753,100.45,100.37,16.55596868]
[1770138703262,16.78834753,100.45,100.32,29.89]
[1770138703463,16.78834753,100.45,100.29,30.80716371]
[1770138703464,3.19485895,100.39,100.29,47.36313239]
[1770138703663,3.30874261,100.37,100.29,16.55596868]
[1770138703960,8.79580499,100.36,100.29,16.55596868]
[1770138704161,3.30874261,100.35,100.29,16.55596868]
[1770138704366,3.30874261,100.35,100.27,16.55596868]
[1770138705061,3.30039192,100.37,100.27,16.55596868]
[1770138705260,3.30039192,100.39,100.27,16.55596868]
[1770138706559,79.46,100.41,100.27,16.55596868]
[1770138706560,3.92385135,100.37,100.27,16.55596868]
[1770138707364,9.4025824,100.35,100.26,16.55596868]
[1770138708162,3.91552002,100.35,100.26,16.55596868]
[1770138708563,3.76032808,100.34,100.26,16.55596868]
[1770138708966,3.76032808,100.36,100.26,16.55596868]
[1770138709572,3.76032808,100.34,100.23,16.55596868]
[1770138711270,3.76032808,100.34,100.25,15.91182848]
[1770138711663,4.79558905,100.36,100.25,15.91182848]
[1770138711870,4.79558905,100.36,100.27,15.91182848]
[1770138713171,4.79558905,100.36,100.23,79.52]
[1770138713172,4.78810295,100.39,100.29,15.91182848]
[1770138714072,4.73319915,100.43,100.31,16.65418408]
[1770138714666,4.72542472,100.41,100.31,16.65418408]
[1770138715770,5.26762983,100.39,100.28,16.65418408]
[1770138718582,4.6706093,100.37,100.28,16.65418408]
[1770138719680,79.52,100.39,100.22,16.65418408]
[1770138719681,4.56708112,100.33,100.22,16.65418408]
[1770138719871,4.56708112,100.36,100.24,16.65418408]
[1770138720076,4.56708112,100.36,100.26,16.65418408]
[1770138720280,4.56708112,100.39,100.28,16.65418408]
[1770138721382,84.08014439,100.41,100.3,16.65418408]
[1770138721583,4.56014439,100.41,100.3,16.65418408]
[1770138722383,4.56014439,100.41,100.27,109.41]
[1770138722384,4.45350617,100.44,100.32,16.65418408]
[1770138722783,4.4463778,100.42,100.32,16.65418408]
[1770138723682,4.25638363,100.44,100.32,16.65418408]
[1770138724288,4.25638363,100.36,100.25,16.65418408]
[1770138724677,4.24963892,100.37,100.26,16.65418408]
[1770138725081,4.24963892,100.4,100.28,16.65418408]
[1770138725384,4.24963892,100.36,100.28,16.65418408]
[1770138725584,10.30657281,100.35,100.23,16.65418408]
[1770138725977,10.30657281,100.37,100.25,16.65418408]
[1770138726380,4.81951043,100.36,100.25,16.65418408]
[1770138726683,4.81951043,100.34,100.25,16.65418408]
[1770138726981,10.29993095,100.37,100.25,16.65418408]
[1770138727176,4.81286857,100.37,100.25,16.65418408]
[1770138728080,4.73161362,100.4,100.28,16.65418408]
[1770138729984,4.08731579,100.39,100.28,16.65418408]
[1770138731185,4.08104095,100.37,100.28,16.65418408]
[1770138731585,4.11410791,100.35,100.25,16.65418408]
[1770138731779,4.11410791,100.33,100.25,16.65418408]
[1770138731980,9.60117029,100.3,100.22,16.65418408]
[1770138732286,4.11410791,100.33,100.22,16.65418408]
[1770138732487,4.11410791,100.33,100.23,16.65418408]
[1770138732678,9.61647176,100.32,100.23,16.65418408]
[1770138732978,9.61647176,100.3,100.2,16.65418408]
[1770138733379,4.10828612,100.29,100.2,16.65418408]
[1770138733584,4.10828612,100.29,100.21,16.51]
[1770138734484,134.71,100.32,100.21,16.51]
[1770138734485,115.14412048,100.32,100.22,16.65418408]
[1770138734785,10.32412048,100.32,100.22,16.65418408]
[1770138734976,4.81593484,100.32,100.22,16.65418408]
[1770138735575,4.81593484,100.32,100.21,22.01818564]
[1770138735576,4.80987983,100.35,100.24,16.65418408]
[1770138735776,4.80987983,100.35,100.26,16.65418408]
[1770138737989,4.42710933,100.38,100.26,16.65418408]
[1770138738591,4.42104237,100.37,100.26,16.65418408]
[1770138738983,4.42104237,100.4,100.28,16.65418408]
[1770138739379,4.42104237,100.39,100.28,16.65418408]
[1770138739583,5.50818564,100.44,100.26,16.65418408]
[1770138739584,4.42104237,100.37,100.26,16.65418408]
[1770138739780,5.11324399,100.35,100.26,16.65418408]
[1770138741494,5.06642335,100.33,100.23,15.67238826]
[1770138741891,10.57544118,100.32,100.23,15.67238826]
[1770138742295,5.06725554,100.32,100.23,15.67238826]
[1770138742593,29.89,100.37,100.23,15.67238826]
[1770138742594,5.06725554,100.35,100.23,15.67238826]
[1770138742992,5.06725554,100.35,100.24,15.67238826]
[1770138744294,4.63579567,100.34,100.24,15.67238826]
[1770138746493,5.50818564,100.36,100.24,15.67238826]
[1770138746794,4.4782722,100.37,100.25,15.67238826]
[1770138747189,4.4782722,100.37,100.27,15.67238826]
[1770138748491,104.64,100.42,100.27,15.67238826]
[1770138748492,4.57646659,100.35,100.27,15.67238826]
[1770138749596,4.57646659,100.35,100.24,15.67238826]
[1770138749896,4.41627407,100.31,100.22,15.67238826]
[1770138753394,4.37485266,100.3,100.22,15.67238826]
[1770138753600,9.8830383,100.29,100.21,16.51]
[1770138754295,9.8830383,100.29,100.21,32.18238826]
[1770138754296,4.37485266,100.29,100.21,32.18238826]
[1770138756100,5.50818564,100.26,100.19,2.77948636]
[1770138756598,5.50818564,100.31,100.19,25.94277172]
[1770138756799,5.50818564,100.29,100.19,25.94277172]
[1770138757100,5.50818564,100.27,100.19,25.94277172]
[1770138758202,5.50818564,100.27,100.19,2.77948636]
[1770138758903,5.50818564,100.25,100.19,2.77948636]
[1770138759204,5.50818564,100.23,100.14,23.38937175]
[1770138759598,5.50818564,100.25,100.14,23.38937175]
[1770138759903,5.50818564,100.23,100.14,23.38937175]
[1770138760104,5.50818564,100.21,100.11,24.89476586]
[1770138760304,5.50818564,100.19,100.11,24.89476586]
[1770138760502,102.02,100.21,100.11,24.89476586]
[1770138761300,5.50818564,100.22,100.11,24.89476586]
[1770138762701,5.50818564,100.19,100.11,24.89476586]
[1770138763202,29.89,100.24,100.02,25.00501283]
[1770138763399,5.50818564,100.15,100.02,25.00501283]
[1770138763599,29.89,100.22,100.06,25.28291281]
[1770138763600,5.50818564,100.19,100.06,25.28291281]
[1770138763800,5.50818564,100.19,100.08,25.28291281]
[1770138764103,5.50818564,100.2,100.08,25.28291281]
[1770138765195,5.50818564,100.18,100.08,25.28291281]
[1770138765599,79.64,100.19,100.03,27.07021745]
[1770138765799,5.50818564,100.14,100.03,27.07021745]
[1770138766200,5.50818564,100.14,100.03,25.33217275]
[1770138767708,85.14818564,100.16,100.03,25.33217275]
[1770138768211,5.50818564,100.16,100.03,25.33217275]
[1770138768510,5.50818564,100.14,100.03,25.33217275]
[1770138768911,5.50818564,100.12,100.03,25.33217275]
[1770138769305,5.50818564,100.13,100.03,25.33217275]
[1770138770304,29.89,100.2,99.993,25.34729048]
[1770138770305,79.68,100.12,99.993,25.34729048]
[1770138770506,5.50818564,100.11,99.993,25.34729048]
[1770138770711,5.50818564,100.09,99.993,25.34729048]
[1770138770907,79.68,100.12,99.993,25.34729048]
[1770138771110,85.18818564,100.12,99.993,25.34729048]
[1770138771815,5.50818564,100.16,100.02,25.09562506]
[1770138772313,110.49,100.19,100.02,25.09562506]
[1770138772314,5.50818564,100.12,100.02,25.09562506]
[1770138772508,79.68,100.12,100.0,1.73876982]
[1770138772710,5.50818564,100.1,99.996,25.09562506]
[1770138773714,5.50818564,100.14,99.996,25.09562506]
[1770138775108,5.50818564,100.16,100.02,25.3729946]
[1770138775414,5.50818564,100.17,100.04,25.3729946]
[1770138775820,5.50818564,100.17,100.01,109.59]
[1770138775821,79.7,100.18,100.06,25.02504909]
[1770138776014,5.50818564,100.2,100.08,25.02504909]
[1770138776216,5.50818564,100.18,100.08,25.02504909]
[1770138776816,5.50818564,100.16,100.08,25.02504909]
[1770138777520,5.50818564,100.18,100.08,25.02504909]
[1770138778924,286.13,100.19,100.08,25.02504909]
[1770138778925,5.50818564,100.16,100.08,25.02504909]
[1770138779725,5.50818564,100.18,100.08,25.02504909]
[1770138780819,5.50818564,100.26,100.08,25.02504909]
[1770138780820,35.39818564,100.2,100.08,25.02504909]
[1770138781026,5.50818564,100.16,100.08,25.02504909]
[1770138781423,5.50818564,100.14,100.02,24.99772142]
[1770138781720,5.50818564,100.16,100.02,30.50590706]
[1770138782330,5.50818564,100.16,100.02,24.99772142]
[1770138782521,5.50818564,100.16,100.02,30.50590706]
[1770138782722,5.50818564,100.12,100.02,24.99772142]
[1770138782923,29.89,100.16,100.02,24.99772142]
[1770138783127,132.8,100.19,100.02,24.99772142]
[1770138783128,5.50818564,100.14,100.02,24.99772142]
[1770138783631,5.50818564,100.14,100.02,30.50590706]
[1770138784025,5.50818564,100.16,100.02,30.50590706]
[1770138784923,109.61,100.18,100.02,30.50590706]
[1770138784924,5.50818564,100.19,100.05,24.92697742]
[1770138785126,5.50818564,100.19,100.02,29.89]
[1770138785127,5.50818564,100.19,100.07,24.92697742]
[1770138785324,5.50818564,100.21,100.07,24.92697742]
[1770138785528,5.50818564,100.21,100.09,24.92697742]
[1770138785726,5.50818564,100.19,100.09,24.92697742]
[1770138785931,5.50818564,100.13,100.0,79.72]
[1770138786230,79.72,100.22,100.0,79.72]
[1770138786626,2.31903694,100.15,100.02,5.50818564]
[1770138786830,5.50818564,100.16,100.02,5.50818564]
[1770138787133,5.50818564,100.14,99.945,29.89]
[1770138787323,5.50818564,100.14,99.99,5.50818564]
[1770138787528,5.50818564,100.14,99.973,79.72]
[1770138787729,5.50818564,100.14,100.0,5.50818564]
[1770138788229,5.50818564,100.12,100.01,79.72]
[1770138789223,5.50818564,100.12,100.02,79.72]
[1770138790529,5.50818564,100.1,99.95,5.50818564]
[1770138790725,5.50818564,100.08,99.97,82.49948636]
[1770138791933,5.50818564,100.09,99.97,82.49948636]
[1770138792130,5.50818564,100.09,99.97,2.77948636]
[1770138792636,29.89,100.12,99.97,2.77948636]
[1770138792836,5.53979498,100.08,99.971,79.74]
[1770138793036,5.53979498,100.08,99.97,2.77948636]
[1770138793037,29.89,100.08,99.97,2.77948636]
[1770138793236,5.53979498,100.03,99.97,2.77948636]
[1770138793432,5.53979498,100.05,99.97,2.77948636]
[1770138793833,5.53979498,100.0,99.97,0.76045271]
[1770138794032,5.53979498,100.04,99.907,1.74044817]
[1770138794731,5.53979498,100.06,99.92,5.53979498]
[1770138795133,5.53979498,100.06,99.907,1.74044817]
[1770138795338,5.53979498,100.06,99.93,5.53979498]
[1770138795741,79.74,100.11,99.907,1.74044817]
[1770138795742,5.53979498,100.09,99.94,5.53979498]
[1770138796134,29.89,100.08,99.907,1.74044817]
[1770138796330,5.53979498,100.07,99.93,5.53979498]
[1770138796842,5.53979498,100.09,99.95,5.53979498]
[1770138797236,5.53979498,100.07,99.92,5.53979498]
[1770138797631,5.53979498,100.09,99.94,5.53979498]
[1770138798739,5.53979498,100.09,99.908,79.76]
[1770138798740,5.53979498,100.09,99.96,5.53979498]
[1770138799341,4.50479206,100.17,99.98,5.53979498]
[1770138799342,5.53979498,100.11,99.98,5.53979498]
[1770138799643,5.53979498,100.13,99.981,79.76]
[1770138800441,29.89,100.12,99.981,79.76]
[1770138800944,5.53979498,100.13,100.0,5.53979498]
[1770138801541,29.89,100.12,99.981,79.76]
[1770138802043,29.89,100.12,99.98,5.53979498]
[1770138802239,5.53979498,100.11,99.981,82.16]
[1770138803648,5.53979498,100.13,99.981,82.16]
[1770138805746,79.78,100.16,100.0,5.53979498]
[1770138805747,5.53979498,100.15,100.0,5.53979498]
[1770138808248,5.53979498,100.15,100.02,5.53979498]
[1770138808450,5.53979498,100.18,100.04,5.53979498]
[1770138808642,5.53979498,100.18,100.05,79.76]
[1770138808844,13.45058796,100.21,100.06,5.53979498]
[1770138809145,5.53979498,100.19,100.06,5.53979498]
[1770138810247,5.53979498,100.13,99.99,5.53979498]
[1770138810448,5.53979498,100.08,99.95,5.53979498]
[1770138810645,29.89,100.07,99.93,5.53979498]
[1770138810845,5.53979498,100.09,99.95,5.53979498]
[1770138811248,29.89,100.11,99.877,199.88]
[1770138811249,5.53979498,100.07,99.93,5.53979498]
[1770138811453,5.53979498,100.03,99.89,5.53979498]
[1770138811653,79.76,100.1,99.81,5.53979498]
[1770138811654,7.91079298,100.09,99.91,5.53979498]
[1770138811849,5.53979498,100.09,99.95,5.53979498]
[1770138812152,5.53979498,100.11,99.97,5.53979498]
[1770138812354,5.53979498,100.11,99.971,79.76]
[1770138812551,5.53979498,100.11,99.97,5.53979498]
[1770138812753,35.42979498,100.11,99.97,5.53979498]
[1770138813053,35.42979498,100.11,99.971,79.76]
[1770138813451,5.53979498,100.13,99.99,5.53979498]
[1770138813852,29.89,100.12,99.99,5.53979498]
[1770138816147,29.89,100.12,99.971,79.76]
[1770138816347,29.89,100.12,99.99,5.53979498]
[1770138816951,35.42979498,100.11,99.97,5.53979498]
[1770138817256,35.42979498,100.13,99.99,85.29979498]
[1770138817456,5.53979498,100.12,99.99,85.29979498]
[1770138817659,29.89,100.11,99.99,85.29979498]
[1770138817845,29.89,100.11,99.99,79.76]
[1770138818156,5.53979498,100.1,99.975,82.12]
[1770138818359,29.89,100.11,99.975,82.12]
[1770138819155,35.42979498,100.1,99.975,82.12]
[1770138819851,35.42979498,100.1,99.913,1.74047863]
[1770138819852,5.53979498,100.08,99.95,5.53979498]
[1770138820057,29.89,100.07,99.949,79.76]
[1770138820260,35.42979498,100.08,99.949,79.76]
[1770138820455,5.53979498,100.08,99.949,79.76]
[1770138820952,5.53979498,100.11,99.97,5.53979498]
[1770138821259,35.42979498,100.09,99.967,79.76]
[1770138821954,5.53979498,100.09,99.967,79.76]
[1770138822752,35.42979498,100.09,99.967,79.76]
[1770138823858,5.53979498,100.09,99.967,79.76]
[1770138824160,29.89,100.12,99.967,79.76]
[1770138824353,5.53979498,100.1,99.967,79.76]
[1770138824756,5.53979498,100.1,99.97,5.53979498]
[1770138824957,35.42979498,100.1,99.97,5.53979498]
[1770138825363,29.89,100.07,99.952,84.48]
[1770138825764,29.89,100.08,99.96,5.53979498]
[1770138826055,5.53979498,100.1,99.96,5.53979498]
[1770138826262,5.53979498,100.14,100.0,5.53979498]
[1770138826858,29.89,100.13,100.0,5.53979498]
[1770138827362,29.89,100.11,99.98,5.53979498]
[1770138827563,29.89,100.11,99.993,79.78]
[1770138828165,29.89,100.12,100.0,5.53979498]
[1770138828458,29.89,100.13,100.0,5.53979498]
[1770138829060,29.89,100.13,100.0,85.31979498]
[1770138829363,35.42979498,100.12,100.0,79.78]
[1770138830367,5.53979498,100.12,100.0,79.78]
[1770138830567,4.6631997,100.12,99.99,81.96]
[1770138832364,4.6631997,100.12,99.98,5.53979498]
[1770138832365,4.6631997,100.12,99.991,84.1]
[1770138833864,5.53979498,100.14,100.0,5.53979498]
[1770138834062,87.67079298,100.18,100.02,5.53979498]
[1770138834063,35.42979498,100.16,100.02,5.53979498]
[1770138834260,5.53979498,100.14,100.0,5.53979498]
[1770138834460,5.53979498,100.14,100.0,85.29979498]
[1770138834962,29.89,100.14,99.98,5.53979498]
[1770138835168,5.53979498,100.12,99.981,81.7]
[1770138835569,35.42979498,100.12,99.981,81.7]
[1770138835763,29.89,100.12,99.981,81.7]
[1770138836370,35.42979498,100.11,99.981,81.7]
[1770138839064,29.89,100.11,99.981,81.7]
[1770138840365,14.61319034,100.17,100.02,5.53979498]
[1770138840366,5.53979498,100.17,100.02,5.53979498]
[1770138840574,5.53979498,100.19,100.06,5.53979498]
[1770138840769,13.45058796,100.23,100.08,5.53979498]
[1770138840968,16.98418834,100.25,100.08,5.53979498]
[1770138841174,5.53979498,100.19,100.05,5.53979498]
[1770138841370,5.53979498,100.17,100.03,111.85972952]
[1770138842174,5.53979498,100.15,100.03,24.41993454]
[1770138842471,35.42979498,100.16,100.03,24.41993454]
[1770138842971,29.89,100.16,100.03,24.41993454]
[1770138843273,79.76,100.17,100.03,24.41993454]
[1770138843274,29.89,100.11,100.03,24.41993454]
[1770138843467,29.89,100.11,100.01,30.80716371]
[1770138843972,29.89,100.11,99.982,24.83732727]
[1770138845374,5.53979498,100.1,99.982,24.83732727]
[1770138845570,5.53979498,100.08,99.982,24.83732727]
[1770138846276,5.53979498,100.06,99.982,24.83732727]
[1770138846876,29.89,100.05,99.982,24.83732727]
[1770138847079,5.53979498,100.04,99.982,24.83732727]
[1770138849475,5.53979498,100.02,99.982,24.83732727]
[1770138849670,5.53979498,100.02,99.952,30.80716371]
[1770138851877,5.53979498,99.96,99.772,95.13647039]
[1770138852077,5.53979498,99.96,99.82,5.53979498]
[1770138852475,207.19,100.01,99.79,5.53979498]
[1770138852476,5.53979498,99.94,99.79,5.53979498]
[1770138852676,79.78,99.939,99.79,5.53979498]
[1770138853274,82.22,99.941,99.79,5.53979498]
[1770138853475,5.53979498,99.93,99.79,5.53979498]
[1770138854178,5.53979498,99.91,99.787,1.74230856]
[1770138854379,5.55898297,99.91,99.787,1.74230856]
[1770138854578,5.55898297,99.91,99.77,5.55898297]
[1770138854776,79.8,99.909,99.76,5.55898297]
[1770138855077,79.8,99.909,99.767,1.74291939]
[1770138855278,5.55898297,99.89,99.767,1.74291939]
[1770138855572,9.19134396,99.989,99.767,1.74291939]
[1770138855773,5.55898297,99.87,99.767,1.74291939]
[1770138855980,5.55898297,99.87,99.75,2.77948636]
[1770138855981,5.55898297,99.85,99.75,2.77948636]
[1770138856273,79.82,99.856,99.75,2.77948636]
[1770138856477,5.55898297,99.89,99.76,5.55898297]
[1770138856674,82.28,99.908,99.76,5.55898297]
[1770138856875,5.55898297,99.89,99.75,2.77948636]
[1770138857277,82.28,99.908,99.76,5.55898297]
[1770138857580,82.28,99.908,99.78,5.55898297]
[1770138858475,82.28,99.908,99.8,5.55898297]
[1770138858677,5.55898297,99.94,99.8,5.55898297]
[1770138859276,5.55898297,99.9,99.763,79.84]
[1770138859479,5.55898297,99.9,99.76,5.55898297]
[1770138859678,5.55898297,99.88,99.75,2.77948636]
[1770138860178,5.55898297,99.91,99.77,5.55898297]
[1770138860383,5.55898297,99.89,99.75,2.77948636]
[1770138860683,79.86,99.902,99.76,5.55898297]
[1770138860883,5.55898297,99.91,99.76,5.55898297]
[1770138861081,79.86,99.915,99.78,5.55898297]
[1770138861282,5.55898297,99.91,99.78,5.55898297]
[1770138861581,5.55898297,99.91,99.76,5.55898297]
[1770138862182,5.55898297,99.91,99.78,5.55898297]
[1770138862685,84.54,99.925,99.758,79.88]
[1770138862885,84.54,99.925,99.77,5.55898297]
[1770138862886,5.55898297,99.91,99.77,5.55898297]
[1770138863184,5.55898297,99.91,99.76,5.55898297]
[1770138863382,5.55898297,99.91,99.78,5.55898297]
[1770138863585,84.54,99.925,99.78,5.55898297]
[1770138864086,5.55898297,99.91,99.78,5.55898297]
[1770138864385,5.55898297,99.91,99.76,5.55898297]
[1770138864980,79.88,99.909,99.76,5.55898297]
[1770138865579,29.89,99.899,99.76,5.55898297]
[1770138867584,79.88,99.909,99.76,5.55898297]
[1770138867585,109.77,99.909,99.76,5.55898297]
[1770138867782,109.77,99.909,99.78,5.55898297]
[1770138868875,109.77,99.909,99.76,5.55898297]
[1770138869389,29.89,99.889,99.75,8.33846933]
[1770138869576,29.89,99.905,99.77,5.55898297]
[1770138870477,29.89,99.904,99.77,5.55898297]
[1770138870880,29.89,99.889,99.75,8.33846933]
[1770138871280,29.89,99.889,99.75,2.77948636]
[1770138871481,5.55898297,99.89,99.75,2.77948636]
[1770138871789,5.55898297,99.91,99.78,5.55898297]
[1770138872083,5.55898297,99.93,99.78,5.55898297]
[1770138872284,5.55898297,99.93,99.79,5.55898297]
[1770138872686,29.89,99.929,99.79,5.55898297]
[1770138873191,8.69765545,99.991,99.76,5.55898297]
[1770138873378,5.55898297,99.92,99.8,5.55898297]
[1770138873578,29.89,99.939,99.8,5.55898297]
[1770138873782,29.89,99.939,99.82,5.55898297]
[1770138873987,5.55898297,99.94,99.82,5.55898297]
[1770138874184,5.55898297,99.94,99.8,5.55898297]
[1770138874379,5.55898297,99.92,99.78,5.55898297]
[1770138874583,29.89,99.919,99.78,5.55898297]
[1770138874887,5.55898297,99.92,99.78,5.55898297]
[1770138875684,79.92,99.939,99.8,5.55898297]
[1770138876485,5.55898297,99.92,99.78,5.55898297]
[1770138877082,5.55898297,99.93,99.8,5.55898297]
[1770138877679,79.92,99.939,99.8,5.55898297]
[1770138879990,5.55898297,99.95,99.82,5.55898297]
[1770138880590,5.55898297,99.97,99.82,5.55898297]
[1770138880784,81.66,99.969,99.796,79.92]
[1770138880992,81.66,99.969,99.84,5.55898297]
[1770138881184,5.55898297,99.97,99.84,5.55898297]
[1770138881387,5.55898297,99.99,99.84,5.55898297]
[1770138881789,109.81,99.995,99.84,5.55898297]
[1770138881990,5.55898297,99.98,99.84,5.55898297]
[1770138883889,8.72003514,100.0,99.88,5.55898297]
[1770138884084,44.16901811,100.02,99.88,5.55898297]
[1770138884391,8.72003514,100.01,99.88,5.55898297]
[1770138884693,8.72003514,100.03,99.9,5.55898297]
[1770138884890,8.72003514,100.02,99.9,5.55898297]
[1770138885091,94.65032693,100.04,99.9,5.55898297]
[1770138885295,18.05741255,100.03,99.9,5.55898297]
[1770138885492,5.55898297,100.06,99.93,5.55898297]
[1770138885795,5.55898297,100.04,99.91,5.55898297]
[1770138886095,5.55898297,100.04,99.89,5.55898297]
[1770138886292,5.55898297,100.04,99.892,83.76]
[1770138887292,5.55898297,100.02,99.892,83.76]
[1770138887689,14.42505156,100.03,99.892,83.76]
[1770138887897,5.55898297,100.03,99.892,83.76]
[1770138888999,5.55898297,99.99,99.85,5.55898297]
[1770138889197,5.55898297,99.97,99.83,5.55898297]
[1770138889803,5.55898297,99.99,99.85,5.55898297]
[1770138889998,5.55898297,99.97,99.84,5.55898297]
[1770138890202,5.55898297,99.97,99.828,79.88]
[1770138890403,5.55898297,99.95,99.782,127.0]
[1770138890606,5.55898297,99.95,99.8,5.55898297]
[1770138891899,5.55898297,99.93,99.8,5.55898297]
[1770138893203,5.55898297,99.93,99.794,548.47391268]
[1770138893398,5.55898297,99.91,99.794,262.11391268]
[1770138893605,5.55898297,99.87,99.75,2.77948636]
[1770138893804,12.25512528,99.939,99.75,2.77948636]
[1770138893805,79.88,99.887,99.75,2.77948636]
[1770138894002,17.97673778,99.952,99.75,2.77948636]
[1770138894003,5.55898297,99.84,99.75,2.77948636]
[1770138894301,5.55898297,99.86,99.75,2.77948636]
[1770138897307,5.55898297,99.88,99.75,2.77948636]
[1770138898107,5.55898297,99.87,99.75,2.77948636]
[1770138900305,114.8,99.885,99.75,8.33846933]
[1770138900507,5.55898297,99.89,99.75,8.33846933]
[1770138901506,5.55898297,99.91,99.77,5.55898297]
[1770138901707,5.55898297,99.89,99.75,8.33846933]
[1770138902314,5.55898297,99.84,99.75,2.77948636]
[1770138902511,5.55898297,99.9,99.76,5.55898297]
[1770138902905,5.55898297,99.92,99.78,5.55898297]
[1770138903514,5.55898297,99.9,99.75,8.33846933]
[1770138903716,5.55898297,99.92,99.79,5.55898297]
[1770138904009,5.55898297,99.94,99.81,5.55898297]
[1770138904818,5.55898297,99.92,99.79,5.55898297]
[1770138905008,5.55898297,99.96,99.81,5.55898297]
[1770138905314,5.55898297,99.93,99.79,5.55898297]
[1770138905513,5.55898297,99.91,99.77,5.55898297]
[1770138905711,5.55898297,99.91,99.756,79.92]